fUSD/lending_fUSD_20240210
["ID","MTS","AMOUNT","RATE_DAILY","PERIOD"]
[313699586,1707595841298,-150.0,0.0002273,2]
[313699587,1707595841308,-173.71,0.0002273,2]
[313699588,1707595841317,-150.0,0.00022733,2]
[313699589,1707595841327,-150.0,0.00022748,2]
[313699590,1707595841338,-150.0,0.00022749,2]
[313699591,1707595841349,-150.0,0.00022753,2]
[313699592,1707595841360,-150.0,0.00022755,2]
[313699593,1707595841371,-150.0,0.00022758,2]
[313699594,1707595841382,-150.0,0.00022761,2]
[313699595,1707595841393,-150.0,0.00022765,2]
[313699596,1707595841404,-150.0,0.00022766,2]
[313699597,1707595841414,-150.0,0.00022766,2]
[313699598,1707595841424,-150.0,0.00022768,2]
[313699599,1707595841433,-4516.56723212,0.00022769,2]
[313699600,1707595841442,-5712.49935369,0.0002277,2]
[313699601,1707595841452,-150.0,0.0002277,2]
[313699602,1707595841461,-150.0,0.00022771,2]
[313699603,1707595841470,-1500.0,0.00022771,2]
[313699604,1707595841479,-150.0,0.00022778,2]
[313699605,1707595841488,-1500.0,0.00022779,2]
[313699606,1707595841497,-1500.0,0.0002278,2]
[313699607,1707595841506,-150.0,0.00022782,2]
[313699608,1707595841515,-150.0,0.00022787,2]
[313699609,1707595841524,-1500.0,0.00022793,2]
[313699610,1707595841533,-150.0,0.00022801,2]
[313699611,1707595841542,-150.0,0.00022802,2]
[313699612,1707595841551,-1500.0,0.00022808,2]
[313699613,1707595841560,-150.0,0.00022809,2]
[313699614,1707595841569,-150.0,0.00022813,2]
[313699615,1707595841577,-300.0,0.00022815,2]
[313699616,1707595841586,-200.0,0.00022816,2]
[313699617,1707595841595,-211.749588,0.00022816,2]
[313699618,1707595841604,-150.0,0.00022818,2]
[313699619,1707595841613,-158.306,0.00022821,2]
[313699620,1707595841627,-1003.0,0.00022821,2]
[313699621,1707595841636,-237.0,0.00022821,2]
[313699622,1707595841645,-1946.0,0.00022821,2]
[313699623,1707595841654,-800.0,0.00022822,2]
[313699624,1707595841663,-203.0,0.00022822,2]
[313699625,1707595841672,-150.0,0.00022823,2]
[313699626,1707595841681,-150.0,0.00022824,2]
[313699627,1707595841690,-177.31122357,0.00022825,2]
[313699628,1707595841698,-150.0,0.00022826,2]
[313699629,1707595841707,-150.0,0.00022828,2]
[313699630,1707595841716,-150.0,0.00022833,2]
[313699631,1707595841725,-150.0,0.00022834,2]
[313699632,1707595841734,-150.0,0.00022836,2]
[313699633,1707595841743,-150.0,0.00022837,2]
[313699634,1707595841752,-150.0,0.0002284,2]
[313699635,1707595841761,-150.0,0.0002284,2]
[313699636,1707595841770,-150.0,0.00022846,2]
[313699637,1707595841778,-150.0,0.00022847,2]
[313699638,1707595841787,-150.0,0.00022848,2]
[313699639,1707595841799,-150.0,0.00022848,2]
[313699640,1707595841808,-382186.60345523,0.0002285,2]
[313699641,1707595841817,-150.0,0.00022853,2]
[313699642,1707595841826,-150.0,0.00022856,2]
[313699643,1707595841835,-150.0,0.00022857,2]
[313699644,1707595841844,-428.0,0.00022857,2]
[313699645,1707595841854,-431.489,0.00022857,2]
[313699646,1707595841863,-858.0,0.00022857,2]
[313699647,1707595841872,-1138.0,0.00022857,2]
[313699648,1707595841882,-150.0,0.00022857,2]
[313699649,1707595841891,-2519.0,0.00022857,2]
[313699650,1707595841900,-343.0,0.00022857,2]
[313699651,1707595841911,-150.0,0.00022864,2]
[313699652,1707595841920,-150.0,0.00022864,2]
[313699653,1707595841928,-150.0,0.00022865,2]
[313699654,1707595841938,-1500.0,0.00022866,2]
[313699655,1707595841947,-150.0,0.00022873,2]
[313699656,1707595841956,-150.0,0.00022875,2]
[313699657,1707595841965,-300.0,0.00022875,2]
[313699658,1707595841974,-431.22934245,0.00022879,2]
[313699659,1707595841984,-395.160851,0.00022879,2]
[313699660,1707595841993,-230.3276383,0.00022879,2]
[313699661,1707595842002,-500.0,0.00022879,2]
[313699662,1707595842010,-500.0,0.00022879,2]
[313699663,1707595842019,-500.0,0.00022879,2]
[313699664,1707595842028,-566.53670366,0.00022879,2]
[313699665,1707595842036,-404.34718286,0.00022879,2]
[313699666,1707595842046,-500.0,0.00022879,2]
[313699667,1707595842054,-229.84399746,0.00022879,2]
[313699668,1707595842064,-500.0,0.00022879,2]
[313699669,1707595842073,-500.0,0.00022879,2]
[313699670,1707595842082,-500.0,0.00022879,2]
[313699671,1707595842090,-500.0,0.00022879,2]
[313699672,1707595842099,-500.0,0.00022879,2]
[313699673,1707595842108,-2922.0,0.0002288,2]
[313699674,1707595842117,-19818.0,0.0002288,2]
[313699675,1707595842126,-7177.526,0.0002288,2]
[313699676,1707595842135,-7405.0,0.0002288,2]
[313699677,1707595842143,-833.393,0.0002288,2]
[313699678,1707595842153,-8152.0,0.0002288,2]
[313699679,1707595842161,-2286.0,0.0002288,2]
[313699680,1707595842171,-1036.0,0.0002288,2]
[313699681,1707595842179,-150.0,0.00022884,2]
[313699682,1707595842188,-500.0,0.00022885,2]
[313699683,1707595842198,-454.1968,0.00022885,2]
[313699684,1707595842207,-150.0,0.00022886,2]
[313699685,1707595842215,-150.0,0.00022887,2]
[313699686,1707595842224,-150.0,0.00022887,2]
[313699687,1707595842244,-150.0,0.00022888,2]
[313699688,1707595842255,-150.0,0.00022895,2]
[313699689,1707595842264,-150.0,0.00022895,2]
[313699690,1707595842273,-150.0,0.00022896,2]
[313699691,1707595842283,-150.0,0.00022897,2]
[313699692,1707595842293,-300.0,0.00022899,2]
[313699693,1707595842302,-150.0,0.00022899,2]
[313699694,1707595842311,-204.78940017,0.00022899,2]
[313699695,1707595842320,-2925.2538,0.000229,2]
[313699696,1707595842330,-4743.9446,0.000229,2]
[313699697,1707595842339,-1187.057,0.000229,2]
[313699698,1707595842347,-1500.0,0.000229,2]
[313699699,1707595842357,-55555.0,0.000229,2]
[313699700,1707595842367,-1449.90822784,0.000229,6]
[313699701,1707595842376,-150.0,0.00022902,2]
[313699702,1707595842385,-150.0,0.00022902,2]
[313699703,1707595842394,-150.0,0.00022906,2]
[313699704,1707595842403,-150.0,0.00022907,2]
[313699705,1707595842412,-877.93513764,0.00022909,2]
[313699706,1707595842421,-150.0,0.0002291,2]
[313699707,1707595842430,-150.0,0.00022912,2]
[313699708,1707595842439,-150.0,0.00022917,2]
[313699709,1707595842448,-150.0,0.0002292,2]
[313699710,1707595842457,-150.0,0.00022925,2]
[313699711,1707595842466,-150.0,0.00022926,2]
[313699712,1707595842475,-150.0,0.00022929,2]
[313699713,1707595842484,-150.0,0.00022931,2]
[313699715,1707595842493,-150.0,0.00022932,2]
[313699717,1707595842502,-150.0,0.00022933,2]
[313699718,1707595842511,-150.0,0.00022935,2]
[313699719,1707595842520,-150.0,0.00022936,2]
[313699721,1707595842529,-150.0,0.00022937,2]
[313699723,1707595842538,-3263.66,0.00022939,2]
[313699724,1707595842547,-150.0,0.00022939,2]
[313699725,1707595842556,-150.0,0.0002294,2]
[313699726,1707595842565,-150.0,0.00022944,2]
[313699727,1707595842574,-150.0,0.00022948,2]
[313699728,1707595842583,-205.57079345,0.00022949,2]
[313699730,1707595842592,-150.0,0.00022952,2]
[313699732,1707595842601,-150.0,0.00022952,2]
[313699734,1707595842610,-397.985,0.00022956,2]
[313699736,1707595842620,-840.0,0.00022956,2]
[313699738,1707595842629,-1858.0,0.00022956,2]
[313699740,1707595842638,-2831.0,0.00022956,2]
[313699741,1707595842646,-951.0,0.00022956,2]
[313699742,1707595842655,-1232.0,0.00022956,2]
[313699743,1707595842664,-1253.0,0.00022956,2]
[313699744,1707595842677,-150.0,0.00022956,2]
[313699745,1707595842686,-150.0,0.00022958,2]
[313699746,1707595842696,-150.0,0.00022958,2]
[313699747,1707595842705,-150.0,0.00022961,2]
[313699748,1707595842714,-150.0,0.00022965,2]
[313699749,1707595842723,-150.0,0.00022968,2]
[313699750,1707595842733,-150.0,0.0002297,2]
[313699751,1707595842741,-150.0,0.0002297,2]
[313699752,1707595842751,-150.0,0.00022973,2]
[313699753,1707595842760,-150.0,0.00022974,2]
[313699754,1707595842769,-150.0,0.00022976,2]
[313699755,1707595842779,-150.0,0.00022976,2]
[313699756,1707595842788,-150.0,0.00022979,2]
[313699757,1707595842797,-150.0,0.00022984,2]
[313699758,1707595842806,-150.0,0.00022984,2]
[313699759,1707595842816,-150.0,0.00022985,2]
[313699760,1707595842825,-150.0,0.00022985,2]
[313699761,1707595842834,-150.0,0.00022986,2]
[313699762,1707595842843,-170.82323589,0.0002299,2]
[313699763,1707595842852,-150.0,0.00022991,2]
[313699764,1707595842861,-150.0,0.00022992,2]
[313699765,1707595842870,-300.0,0.00022992,2]
[313699766,1707595842879,-230.8992791,0.00022996,2]
[313699767,1707595842889,-474.51878217,0.00022996,2]
[313699768,1707595842898,-169.81814629,0.00022996,2]
[313699769,1707595842915,-5607.1110697,0.00022998,2]
[313699770,1707595842924,-56253.5984934,0.00022998,2]
[313699771,1707595842933,-12104.1203253,0.00022998,2]
[313699772,1707595842942,-1713.2830091,0.00022998,2]
[313699773,1707595842952,-3864.91880129,0.00022999,2]
[313699774,1707595842965,-150.0,0.00022999,2]
[313699776,1707595842974,-254.02441233,0.00022999,2]
[313699778,1707595842984,-883.09247493,0.00023,3]
[313699779,1707595842993,-250143.4765482,0.00023,2]
[313699780,1707595843002,-460.40072518,0.00023,2]
[313699781,1707595843012,-52792.05281902,0.00023,2]
[313699782,1707595843021,-723.0,0.00023,2]
[313699784,1707595843029,-331647.95152605,0.00023,2]
[313699785,1707595843038,-2024414.324618,0.00023,2]
[313699786,1707595843047,-2000.0,0.00023,2]
[313699787,1707595843056,-200.0,0.00023,2]
[313699788,1707595843066,-5641.42411,0.00023,2]
[313699789,1707595843075,-990.0,0.00023,7]
[313699790,1707595843084,-990.0,0.00023,7]
[313699791,1707595843093,-990.0,0.00023,7]
[313699792,1707595843102,-990.0,0.00023,7]
[313699793,1707595843112,-990.0,0.00023,7]
[313699794,1707595843122,-990.0,0.00023,7]
[313699795,1707595843131,-1500.0,0.00023,2]
[313699796,1707595843140,-275.5,0.00023,2]
[313699797,1707595843149,-500.0,0.00023014,2]
[313699798,1707595843158,-220.99844038,0.00023056,2]
[313699799,1707595843167,-177.16,0.00023096,2]
[313699800,1707595843177,-2000.0,0.0002323,2]
[313699801,1707595843186,-200.0,0.0002323,2]
[313699802,1707595843195,-1285.11737946,0.0002324,2]
[313699803,1707595843205,-19847.20563564,0.00023385,2]
[313699804,1707595843214,-2000.0,0.00023462,2]
[313699805,1707595843223,-200.0,0.00023462,2]
[313699806,1707595843232,-2610.85916227,0.00023464,2]
[313699807,1707595843241,-2857.63,0.00023489,2]
[313699808,1707595843250,-352.65,0.00023604,2]
[313699809,1707595843259,-177.16,0.00023644,2]
[313699810,1707595843268,-2000.0,0.00023697,2]
[313699811,1707595843277,-200.0,0.00023697,2]
[313699812,1707595843286,-1245.23221993,0.00023789,2]
[313699813,1707595843295,-630.12,0.00023957,2]
[313699814,1707595843304,-517.67135296,0.00024,2]
[313699815,1707595843314,-202.08012209,0.00024,2]
[313699816,1707595843323,-386.728906,0.00024,2]
[313699817,1707595843332,-300.0,0.0002405,2]
[313699818,1707595843341,-671.88,0.00024088,2]
[313699819,1707595843350,-197.00691101,0.00024095,2]
[313699820,1707595843359,-420.0,0.00024097,2]
[313699821,1707595843368,-19847.20563564,0.00024135,2]
[313699822,1707595843377,-462.35,0.00024144,2]
[313699823,1707595843386,-173.71,0.00024151,2]
[313699824,1707595843396,-3250.6,0.00024174,2]
[313699825,1707595843405,-1123.43,0.00024174,2]
[313699826,1707595843414,-305.47407965,0.00024192,2]
[313699827,1707595843423,-150.0,0.00024231,2]
[313699828,1707595843710,-168.56109917,0.000243,2]
[313699829,1707595843721,-2857.63,0.0002432,2]
[313699830,1707595843729,-10650.93,0.00024384,2]
[313699831,1707595843738,-3547.66,0.00024384,2]
[313699832,1707595843747,-2610.85916227,0.00024536,2]
[313699833,1707595843756,-3263.66,0.00024583,2]
[313699834,1707595843764,-1449.90822781,0.0002465,9]
[313699835,1707595843773,-367.59909898,0.00024658,2]
[313699836,1707595843782,-250.0,0.00024658,2]
[313699837,1707595843791,-352.65,0.00024677,2]
[313699838,1707595843799,-1000.0,0.000248,2]
[313699839,1707595843808,-19847.20563564,0.00024884,2]
[313699840,1707595843817,-421.64,0.00024932,2]
[313699841,1707595843825,-342.27,0.00024932,2]
[313699842,1707595843834,-340.7647424,0.00025,2]
[313699843,1707595843843,-18705.30158929,0.00025,4]
[313699844,1707595843851,-202.81212707,0.00025,2]
[313699845,1707595843860,-945.00631498,0.00025,2]
[313699846,1707595843869,-1589.60561063,0.00025,2]
[313699847,1707595843878,-1906.68022095,0.00025,2]
[313699848,1707595843886,-1255.07330697,0.00025,2]
[313699849,1707595843895,-159.33285095,0.00025,2]
[313699850,1707595843906,-168.01645119,0.00025,2]
[313699851,1707595843915,-697.48549167,0.00025,2]
[313699852,1707595843924,-622.49852888,0.00025,2]
[313699853,1707595843933,-2819.15720769,0.00025,2]
[313699854,1707595843942,-155.66215234,0.00025,2]
[313699855,1707595843951,-158.60850834,0.00025,14]
[313699856,1707595843959,-150.0,0.00025,2]
[313699857,1707595843968,-945.34750564,0.00025,2]
[313699858,1707595843977,-14995.0,0.00025,2]
[313699859,1707595843986,-462.43231447,0.00025,5]
[313699860,1707595843995,-9626.73792131,0.00025,7]
[313699861,1707595844004,-1250.0,0.00025,3]
[313699862,1707595844013,-3000.0,0.00025,2]
[313699863,1707595844022,-150.1,0.00025,6]
[313699864,1707595844030,-150.0,0.00025,2]
[313699865,1707595844039,-3000.0,0.0002501,2]
[313699866,1707595844048,-3000.0,0.0002502,2]
[313699867,1707595844056,-3000.0,0.0002503,2]
[313699868,1707595844066,-3000.0,0.0002504,2]
[313699869,1707595844074,-3000.0,0.0002505,2]
[313699870,1707595844083,-3000.0,0.0002506,2]
[313699871,1707595844092,-3000.0,0.0002507,2]
[313699872,1707595844101,-3000.0,0.0002508,2]
[313699873,1707595844110,-154.73171525,0.0002509,2]
[313699874,1707595844119,-3000.0,0.0002509,2]
[313699875,1707595844128,-3135.19612842,0.000251,2]
[313699876,1707595844137,-3000.0,0.000251,2]
[313699877,1707595844147,-3000.0,0.0002511,2]
[313699878,1707595844157,-4591.83546,0.0002512,2]
[313699879,1707595844166,-2857.63,0.0002515,2]
[313699880,1707595844175,-165.37,0.00025244,2]
[313699881,1707595844184,-202.39093354,0.000253,2]
[313699882,1707595844193,-1000.0,0.000253,2]
[313699883,1707595844202,-1000.0,0.000253,2]
[313699884,1707595844211,-50000.0,0.00025339,2]
[313699885,1707595844219,-50000.0,0.00025443,2]
[313699886,1707595844229,-1000.0,0.000255,3]
[313699887,1707595844237,-173.71,0.00025572,2]
[313699888,1707595844246,-2610.85916227,0.00025609,2]
[313699889,1707595844255,-19847.20563564,0.00025634,2]
[313699890,1707595844263,-352.65,0.0002575,2]
[313699891,1707595844272,-50000.0,0.00025779,2]
[313699892,1707595844281,-950.8075528,0.00025789,2]
[313699893,1707595844290,-198.34965624,0.00025789,2]
[313699894,1707595844298,-992.58276336,0.00025789,2]
[313699895,1707595844307,-240.54158221,0.00025789,2]
[313699896,1707595844316,-1003.0,0.00025821,2]
[313699897,1707595844325,-194.188,0.00025821,2]
[313699898,1707595844334,-1946.0,0.00025821,2]
[313699899,1707595844343,-207.0,0.00025843,7]
[313699900,1707595844352,-428.0,0.00025857,2]
[313699901,1707595844361,-321.0,0.00025857,2]
[313699902,1707595844370,-847.0,0.00025857,2]
[313699903,1707595844378,-2519.0,0.00025857,2]
[313699904,1707595844387,-343.0,0.00025857,2]
[313699905,1707595844396,-2922.0,0.0002588,2]
[313699906,1707595844405,-19818.0,0.0002588,2]
[313699907,1707595844414,-7405.0,0.0002588,2]
[313699908,1707595844422,-8142.0,0.0002588,2]
[313699909,1707595844431,-2286.0,0.0002588,2]
[313699910,1707595844440,-1036.0,0.0002588,2]
[313699911,1707595844449,-150.0,0.00025956,2]
[313699912,1707595844457,-150.0,0.00025956,2]
[313699913,1707595844466,-150.0,0.00025956,2]
[313699914,1707595844475,-150.0,0.00025956,2]
[313699915,1707595844483,-150.0,0.00025956,2]
[313699916,1707595844492,-150.0,0.00025956,2]
[313699917,1707595844501,-150.0,0.00025956,2]
[313699918,1707595844509,-840.0,0.00025956,2]
[313699919,1707595844518,-608.912,0.00025956,2]
[313699920,1707595844527,-2831.0,0.00025956,2]
[313699921,1707595844535,-951.0,0.00025956,2]
[313699922,1707595844544,-1232.0,0.00025956,2]
[313699923,1707595844553,-1253.0,0.00025956,2]
[313699924,1707595844562,-2857.63,0.00025981,2]
[313699925,1707595844570,-33947.29161978,0.00026,2]
[313699926,1707595844579,-1522.0,0.00026,2]
[313699927,1707595844588,-150.0,0.00026,2]
[313699928,1707595844597,-150.0,0.00026079,2]
[313699929,1707595844606,-587.0,0.0002618,2]
[313699930,1707595844614,-3263.66,0.00026226,2]
[313699931,1707595844624,-671.88,0.00026352,2]
[313699932,1707595844634,-19847.20563564,0.00026383,2]
[313699933,1707595844642,-1449.90822781,0.000264,11]
[313699934,1707595844652,-278.031802,0.000266,2]
[313699935,1707595844660,-897.0,0.000266,2]
[313699936,1707595844669,-690.0,0.000266,2]
[313699937,1707595844678,-630.12,0.00026619,2]
[313699938,1707595844687,-2610.85916227,0.00026682,3]
[313699939,1707595844696,-200000.0,0.00026782,2]
[313699940,1707595844705,-2857.63,0.00026812,2]
[313699941,1707595844713,-462.35,0.00026827,2]
[313699942,1707595844722,-19234.59114204,0.000269,2]
[313699943,1707595844731,-150.0,0.00026971,2]
[313699944,1707595844739,-17911.07957613,0.00027,2]
[313699945,1707595844748,-12919.45971997,0.00027,2]
[313699946,1707595844757,-418.08701247,0.00027,2]
[313699947,1707595844766,-1300.0,0.00027,3]
[313699948,1707595844775,-150.0,0.00027,2]
[313699949,1707595844784,-150.1,0.000271,2]
[313699950,1707595844793,-19847.20563564,0.00027133,2]
[313699951,1707595844802,-1000.0,0.00027297,2]
[313699952,1707595844810,-6354.725879,0.00027379,2]
[313699953,1707595844819,-63754.0782925,0.00027379,2]
[313699954,1707595844828,-13747.401381,0.00027379,2]
[313699955,1707595844837,-1945.8819453,0.00027379,2]
[313699956,1707595844846,-155.0,0.00027397,2]
[313699957,1707595844854,-150.0,0.00027397,2]
[313699958,1707595844863,-3000.0,0.00027397,2]
[313699959,1707595844873,-3000.0,0.00027397,2]
[313699960,1707595844881,-3000.0,0.00027397,2]
[313699961,1707595844891,-3000.0,0.00027397,2]
[313699962,1707595844900,-3000.0,0.00027397,2]
[313699963,1707595844912,-3000.0,0.00027397,2]
[313699964,1707595844921,-3000.0,0.00027397,2]
[313699965,1707595844929,-3000.0,0.00027397,2]
[313699966,1707595844938,-3000.0,0.00027397,2]
[313699967,1707595844947,-3000.0,0.00027397,2]
[313699968,1707595844957,-3000.0,0.00027397,2]
[313699969,1707595844965,-3000.0,0.00027397,2]
[313699970,1707595844974,-3000.0,0.00027397,2]
[313699971,1707595844983,-3000.0,0.00027397,2]
[313699972,1707595844992,-3000.0,0.00027397,2]
[313699973,1707595845001,-3000.0,0.00027397,2]
[313699974,1707595845009,-5157.09746085,0.00027397,2]
[313699975,1707595845018,-201.21833015,0.00027397,2]
[313699976,1707595845027,-153.12791,0.00027397,7]
[313699977,1707595845036,-151.0,0.00027397,7]
[313699978,1707595845045,-151.0,0.00027397,7]
[313699979,1707595845054,-162.858877,0.00027397,7]
[313699980,1707595845062,-151.0,0.00027397,7]
[313699981,1707595845071,-151.0,0.00027397,7]
[313699982,1707595845080,-151.0,0.00027397,7]
[313699983,1707595845089,-162.461984,0.00027397,7]
[313699984,1707595845098,-153.349421,0.00027397,7]
[313699985,1707595845107,-151.0,0.00027397,7]
[313699986,1707595845116,-151.0,0.00027397,7]
[313699987,1707595845125,-151.0,0.00027397,7]
[313699988,1707595845134,-151.0,0.00027397,7]
[313699989,1707595845143,-151.0,0.00027397,7]
[313699990,1707595845152,-151.0,0.00027397,7]
[313699991,1707595845161,-151.0,0.00027397,7]
[313699992,1707595845170,-151.0,0.00027397,7]
[313699993,1707595845179,-151.0,0.00027397,7]
[313699994,1707595845188,-151.0,0.00027397,7]
[313699995,1707595845198,-295.605781,0.00027397,7]
[313699996,1707595845207,-151.0,0.00027397,7]
[313699997,1707595845216,-151.0,0.00027397,7]
[313699998,1707595845224,-151.0,0.00027397,7]
[313699999,1707595845233,-151.0,0.00027397,7]
[313700000,1707595845242,-151.0,0.00027397,7]
[313700001,1707595845251,-35287.04,0.00027397,2]
[313700002,1707595845260,-170.379979,0.00027397,7]
[313700003,1707595845269,-63695.0,0.00027397,4]
[313700004,1707595845278,-161.991138,0.00027397,7]
[313700005,1707595845287,-151.0,0.00027397,7]
[313700006,1707595845295,-151.0,0.00027397,7]
[313700007,1707595845304,-151.0,0.00027397,7]
[313700008,1707595845313,-151.0,0.00027397,7]
[313700009,1707595845322,-153.945987,0.00027397,7]
[313700010,1707595845331,-224.913742,0.00027397,2]
[313700011,1707595845339,-224.913742,0.00027397,2]
[313700012,1707595845348,-224.913742,0.00027397,2]
[313700013,1707595845357,-224.913742,0.00027397,2]
[313700014,1707595845366,-224.913742,0.00027397,2]
[313700015,1707595845375,-224.913742,0.00027397,2]
[313700016,1707595845384,-224.913742,0.00027397,2]
[313700017,1707595845393,-224.913742,0.00027397,2]
[313700018,1707595845402,-151.0,0.00027397,7]
[313700019,1707595845410,-151.0,0.00027397,7]
[313700020,1707595845419,-151.0,0.00027397,7]
[313700021,1707595845427,-169.345562,0.00027397,7]
[313700022,1707595845437,-153.737524,0.00027397,7]
[313700023,1707595845445,-64411.06,0.00027397,2]
[313700024,1707595845454,-151.0,0.00027397,7]
[313700025,1707595845463,-158.304041,0.00027397,7]
[313700026,1707595845471,-151.0,0.00027397,7]
[313700027,1707595845480,-160.728864,0.00027397,7]
[313700028,1707595845489,-171.3731,0.00027397,7]
[313700029,1707595845498,-171.3731,0.00027397,7]
[313700030,1707595845507,-171.3731,0.00027397,7]
[313700033,1707595845515,-171.3731,0.00027397,7]
[313700035,1707595845524,-171.3731,0.00027397,7]
[313700037,1707595845533,-171.3731,0.00027397,7]
[313700039,1707595845542,-171.3731,0.00027397,7]
[313700041,1707595845550,-171.3731,0.00027397,7]
[313700043,1707595845559,-171.3731,0.00027397,7]
[313700045,1707595845568,-171.3731,0.00027397,7]
[313700047,1707595845577,-171.3731,0.00027397,7]
[313700049,1707595845585,-171.3731,0.00027397,7]
[313700051,1707595845594,-288.669931,0.00027397,7]
[313700053,1707595845603,-151.0,0.00027397,7]
[313700054,1707595845612,-267.28791,0.00027397,7]
[313700055,1707595845620,-151.0,0.00027397,7]
[313700056,1707595845629,-151.0,0.00027397,7]
[313700057,1707595845638,-151.0,0.00027397,7]
[313700058,1707595845647,-160.463913,0.00027397,7]
[313700059,1707595845655,-154.288387,0.00027397,7]
[313700061,1707595845664,-151.0,0.00027397,7]
[313700063,1707595845673,-151.0,0.00027397,7]
[313700065,1707595845681,-151.0,0.00027397,7]
[313700067,1707595845690,-194.332447,0.00027397,7]
[313700069,1707595845699,-151.0,0.00027397,7]
[313700071,1707595845708,-151.0,0.00027397,7]
[313700073,1707595845716,-151.0,0.00027397,7]
[313700075,1707595845725,-973.185122,0.00027397,7]
[313700077,1707595845734,-973.185122,0.00027397,7]
[313700079,1707595845743,-973.185122,0.00027397,7]
[313700081,1707595845751,-973.185122,0.00027397,7]
[313700083,1707595845761,-973.185122,0.00027397,7]
[313700085,1707595845769,-294.35913,0.00027397,7]
[313700087,1707595845778,-973.185122,0.00027397,7]
[313700089,1707595845786,-294.35913,0.00027397,7]
[313700091,1707595845795,-973.185122,0.00027397,7]
[313700093,1707595845804,-294.35913,0.00027397,7]
[313700095,1707595845813,-294.35913,0.00027397,7]
[313700096,1707595845821,-294.35913,0.00027397,7]
[313700097,1707595845833,-294.35913,0.00027397,7]
[313700098,1707595845842,-973.185122,0.00027397,7]
[313700099,1707595845850,-973.185122,0.00027397,7]
[313700100,1707595845859,-159.95238,0.00027397,7]
[313700101,1707595845868,-294.35913,0.00027397,7]
[313700102,1707595845876,-973.185122,0.00027397,7]
[313700103,1707595845885,-973.185122,0.00027397,7]
[313700104,1707595845894,-973.185122,0.00027397,7]
[313700105,1707595845906,-973.185122,0.00027397,7]
[313700106,1707595845915,-294.35913,0.00027397,7]
[313700107,1707595845923,-973.185122,0.00027397,7]
[313700108,1707595845932,-294.35913,0.00027397,7]
[313700110,1707595845941,-294.35913,0.00027397,7]
[313700112,1707595845949,-294.35913,0.00027397,7]
[313700113,1707595845958,-294.35913,0.00027397,7]
[313700114,1707595845966,-294.35913,0.00027397,7]
[313700115,1707595845976,-294.35913,0.00027397,7]
[313700116,1707595845985,-151.0,0.00027397,7]
[313700118,1707595845995,-155.289229,0.00027397,7]
[313700120,1707595846004,-151.0,0.00027397,7]
[313700121,1707595846012,-151.0,0.00027397,7]
[313700122,1707595846021,-151.0,0.00027397,7]
[313700123,1707595846030,-287.260409,0.00027397,7]
[313700124,1707595846038,-183.338458,0.00027397,7]
[313700125,1707595846047,-151.0,0.00027397,7]
[313700126,1707595846056,-151.0,0.00027397,7]
[313700127,1707595846065,-161.573359,0.00027397,7]
[313700128,1707595846073,-151.0,0.00027397,7]
[313700129,1707595846082,-160.395977,0.00027397,7]
[313700130,1707595846090,-151.0,0.00027397,7]
[313700131,1707595846098,-151.0,0.00027397,7]
[313700132,1707595846107,-151.0,0.00027397,7]